[Event "Titled Tuesday Blitz August 22 Early 2023"]
[White "Rasulov, Vugar"]
[Black "Javakhadze, Zurab"]
[WhiteFideId "13402390"]
[BlackFideId "13603647"]
[WhiteElo "2894"]
[BlackElo "2717"]
[Result "1-0"]
[Round "9"]
[TimeControl "180+1"]
[Date "2023.08.22"]
[WhiteClock "0:00:18"]
[BlackClock "0:00:00"]
[Board "20"]

1. Nf3 {[%clk 0:03:00]}  d5 {[%clk 0:02:59]} 2. c4 {[%clk 0:03:00]}  e6 {[%clk 0:03:00]} 3. e3 {[%clk 0:03:01]}  Nf6 {[%clk 0:03:00]} 4. Nc3 {[%clk 0:03:01]}  Be7 {[%clk 0:03:01]} 5. d4 {[%clk 0:03:01]}  O-O {[%clk 0:03:02]} 6. Bd3 {[%clk 0:03:02]}  b6 {[%clk 0:03:00]} 7. cxd5 {[%clk 0:03:00]}  exd5 {[%clk 0:03:00]} 8. O-O {[%clk 0:03:01]}  Bb7 {[%clk 0:03:00]} 9. Ne5 {[%clk 0:03:00]}  c5 {[%clk 0:02:56]} 10. f4 {[%clk 0:03:00]}  Nc6 {[%clk 0:02:57]} 11. Qf3 {[%clk 0:02:54]}  cxd4 {[%clk 0:02:49]} 12. Nxc6 {[%clk 0:02:54]}  Bxc6 {[%clk 0:02:50]} 13. exd4 {[%clk 0:02:54]}  Re8 {[%clk 0:02:47]} 14. f5 {[%clk 0:02:48]}  Ne4 {[%clk 0:02:43]} 15. Bxe4 {[%clk 0:02:38]}  dxe4 {[%clk 0:02:43]} 16. Qf2 {[%clk 0:02:39]}  Bh4 {[%clk 0:02:24]} 17. g3 {[%clk 0:02:34]}  e3 {[%clk 0:02:04]} 18. Bxe3 {[%clk 0:02:34]}  Bf6 {[%clk 0:02:03]} 19. Rad1 {[%clk 0:02:27]}  Bd5 {[%clk 0:01:48]} 20. Rfe1 {[%clk 0:02:13]}  Qd7 {[%clk 0:01:47]} 21. g4 {[%clk 0:02:07]}  h6 {[%clk 0:01:42]} 22. Bf4 {[%clk 0:02:05]}  Rxe1+ {[%clk 0:01:40]} 23. Rxe1 {[%clk 0:02:06]}  Bb7 {[%clk 0:01:36]} 24. Be5 {[%clk 0:02:04]}  Bxe5 {[%clk 0:01:10]} 25. Rxe5 {[%clk 0:01:49]}  Rd8 {[%clk 0:01:09]} 26. h3 {[%clk 0:01:44]}  Qc6 {[%clk 0:00:53]} 27. d5 {[%clk 0:01:40]}  Qd6 {[%clk 0:00:50]} 28. Qe3 {[%clk 0:01:39]}  Kh7 {[%clk 0:00:31]} 29. a3 {[%clk 0:01:28]}  Rd7 {[%clk 0:00:27]} 30. h4 {[%clk 0:01:11]}  Qc7 {[%clk 0:00:26]} 31. g5 {[%clk 0:01:04]}  Qd8 {[%clk 0:00:18]} 32. Kf2 {[%clk 0:00:58]}  Bxd5 {[%clk 0:00:15]} 33. Re8 {[%clk 0:00:59]}  Qc7 {[%clk 0:00:11]} 34. Qg3 {[%clk 0:00:41]}  Qc5+ {[%clk 0:00:09]} 35. Ke1 {[%clk 0:00:33]}  Re7+ {[%clk 0:00:05]} 36. Rxe7 {[%clk 0:00:33]}  Qxe7+ {[%clk 0:00:06]} 37. Kd2 {[%clk 0:00:33]}  Bc4 {[%clk 0:00:06]} 38. Qf4 {[%clk 0:00:22]}  Bb3 {[%clk 0:00:04]} 39. Qe4 {[%clk 0:00:19]}  Qd7+ {[%clk 0:00:00]} 40. Ke1 {[%clk 0:00:18]} 1-0


[Site "https://www.chess.com"]

[Event "Titled Tuesday Blitz August 22 Early 2023"]
[White "Volovich, Vasily"]
[Black "Cordova, Emilio"]
[WhiteFideId "34169676"]
[BlackFideId "3801497"]
[WhiteElo "2716"]
[BlackElo "2879"]
[Result "0-1"]
[Round "9"]
[TimeControl "180+1"]
[Date "2023.08.22"]
[WhiteClock "0:00:05"]
[BlackClock "0:00:41"]
[Board "22"]

1. e4 {[%clk 0:03:00]}  Nc6 {[%clk 0:02:51]} 2. Nf3 {[%clk 0:02:58]}  d6 {[%clk 0:02:48]} 3. d4 {[%clk 0:02:55]}  Nf6 {[%clk 0:02:33]} 4. Nc3 {[%clk 0:02:54]}  g6 {[%clk 0:02:33]} 5. Bb5 {[%clk 0:02:51]}  a6 {[%clk 0:02:29]} 6. Bxc6+ {[%clk 0:02:48]}  bxc6 {[%clk 0:02:13]} 7. h3 {[%clk 0:02:47]}  Bg7 {[%clk 0:02:04]} 8. O-O {[%clk 0:02:45]}  O-O {[%clk 0:02:00]} 9. Re1 {[%clk 0:02:41]}  c5 {[%clk 0:01:48]} 10. dxc5 {[%clk 0:02:40]}  Nd7 {[%clk 0:01:40]} 11. cxd6 {[%clk 0:02:36]}  cxd6 {[%clk 0:01:33]} 12. Nd5 {[%clk 0:02:30]}  Rb8 {[%clk 0:01:31]} 13. c3 {[%clk 0:02:26]}  e6 {[%clk 0:01:30]} 14. Ne3 {[%clk 0:02:22]}  Qc7 {[%clk 0:01:26]} 15. Qe2 {[%clk 0:02:03]}  a5 {[%clk 0:01:11]} 16. Rd1 {[%clk 0:02:03]}  Nc5 {[%clk 0:01:10]} 17. Ng4 {[%clk 0:01:18]}  h5 {[%clk 0:01:07]} 18. Nh6+ {[%clk 0:01:17]}  Kh8 {[%clk 0:01:03]} 19. Bf4 {[%clk 0:01:17]}  e5 {[%clk 0:01:02]} 20. Bc1 {[%clk 0:01:06]}  Ba6 {[%clk 0:00:59]} 21. Qe3 {[%clk 0:01:06]}  f6 {[%clk 0:00:58]} 22. g4 {[%clk 0:01:00]}  Ne6 {[%clk 0:00:49]} 23. gxh5 {[%clk 0:00:58]}  Nf4 {[%clk 0:00:49]} 24. Ng4 {[%clk 0:00:54]}  f5 {[%clk 0:00:50]} 25. Ngh2 {[%clk 0:00:50]}  fxe4 {[%clk 0:00:48]} 26. Qxe4 {[%clk 0:00:43]}  Bb7 {[%clk 0:00:47]} 27. Qe1 {[%clk 0:00:28]}  Nxh3+ {[%clk 0:00:47]} 28. Kg2 {[%clk 0:00:29]}  Nf4+ {[%clk 0:00:48]} 29. Bxf4 {[%clk 0:00:28]}  Rxf4 {[%clk 0:00:47]} 30. hxg6 {[%clk 0:00:27]}  Qc6 {[%clk 0:00:43]} 31. Qe2 {[%clk 0:00:23]}  Rbf8 {[%clk 0:00:40]} 32. Rh1 {[%clk 0:00:17]}  Kg8 {[%clk 0:00:41]} 33. Kf1 {[%clk 0:00:16]}  e4 {[%clk 0:00:40]} 34. Nd2 {[%clk 0:00:07]}  e3 {[%clk 0:00:39]} 35. Ndf3 {[%clk 0:00:06]}  Rxf3 {[%clk 0:00:40]} 36. Nxf3 {[%clk 0:00:06]}  Rxf3 {[%clk 0:00:41]} 37. Rh2 {[%clk 0:00:05]}  Ba6 {[%clk 0:00:41]} 0-1


[Site "https://www.chess.com"]

[Event "Titled Tuesday Blitz August 22 Early 2023"]
[White "Maus7"]
[Black "Timofeev, Artyom"]
[BlackFideId "4140419"]
[WhiteElo "2553"]
[BlackElo "2855"]
[Result "0-1"]
[Round "9"]
[TimeControl "180+1"]
[Date "2023.08.22"]
[WhiteClock "0:00:01"]
[BlackClock "0:01:00"]
[Board "25"]

1. e4 {[%clk 0:03:00]}  e6 {[%clk 0:02:59]} 2. d4 {[%clk 0:03:00]}  d5 {[%clk 0:02:59]} 3. Nc3 {[%clk 0:03:01]}  dxe4 {[%clk 0:02:59]} 4. Nxe4 {[%clk 0:03:02]}  Nd7 {[%clk 0:02:59]} 5. Nf3 {[%clk 0:03:02]}  Ngf6 {[%clk 0:02:59]} 6. Bd3 {[%clk 0:03:02]}  Nxe4 {[%clk 0:02:58]} 7. Bxe4 {[%clk 0:03:03]}  Nf6 {[%clk 0:02:58]} 8. Bd3 {[%clk 0:03:04]}  c5 {[%clk 0:02:57]} 9. Be3 {[%clk 0:02:57]}  Qc7 {[%clk 0:02:48]} 10. Qe2 {[%clk 0:02:53]}  a6 {[%clk 0:02:37]} 11. dxc5 {[%clk 0:02:48]}  Bxc5 {[%clk 0:02:36]} 12. Bxc5 {[%clk 0:02:46]}  Qxc5 {[%clk 0:02:36]} 13. O-O-O {[%clk 0:02:34]}  O-O {[%clk 0:02:27]} 14. Ne5 {[%clk 0:02:34]}  b5 {[%clk 0:02:24]} 15. g4 {[%clk 0:02:31]}  Bb7 {[%clk 0:02:02]} 16. g5 {[%clk 0:02:31]}  Nd5 {[%clk 0:02:02]} 17. Qe4 {[%clk 0:02:27]}  g6 {[%clk 0:01:53]} 18. Nd7 {[%clk 0:01:47]}  Qxf2 {[%clk 0:01:52]} 19. Nxf8 {[%clk 0:01:44]}  Rxf8 {[%clk 0:01:48]} 20. Rhg1 {[%clk 0:01:20]}  Rc8 {[%clk 0:01:34]} 21. Qe5 {[%clk 0:01:13]}  Ne3 {[%clk 0:01:23]} 22. Rge1 {[%clk 0:00:26]}  Nxc2 {[%clk 0:01:13]} 23. Kb1 {[%clk 0:00:14]}  Nxe1 {[%clk 0:01:11]} 24. Rxe1 {[%clk 0:00:15]}  Qd2 {[%clk 0:01:06]} 25. Qe3 {[%clk 0:00:03]}  Rc1+ {[%clk 0:01:01]} 26. Rxc1 {[%clk 0:00:01]}  Qxe3 {[%clk 0:01:00]} 0-1


[Site "https://www.chess.com"]

[Event "Titled Tuesday Blitz August 22 Early 2023"]
[White "Cherniaiev, Tykhon"]
[Black "Naroditsky, Daniel"]
[WhiteFideId "14182360"]
[BlackFideId "2026961"]
[WhiteElo "2801"]
[BlackElo "3174"]
[Result "1/2-1/2"]
[Round "9"]
[TimeControl "180+1"]
[Date "2023.08.22"]
[WhiteClock "0:00:13"]
[BlackClock "0:00:06"]
[Board "26"]

1. Nf3 {[%clk 0:03:00]}  Nf6 {[%clk 0:02:51]} 2. d4 {[%clk 0:03:01]}  g6 {[%clk 0:02:51]} 3. c4 {[%clk 0:03:01]}  Bg7 {[%clk 0:02:52]} 4. g3 {[%clk 0:03:01]}  d6 {[%clk 0:02:52]} 5. Bg2 {[%clk 0:03:02]}  O-O {[%clk 0:02:53]} 6. O-O {[%clk 0:03:02]}  Nbd7 {[%clk 0:02:54]} 7. Nc3 {[%clk 0:03:03]}  e5 {[%clk 0:02:55]} 8. b3 {[%clk 0:03:04]}  Re8 {[%clk 0:02:53]} 9. Bb2 {[%clk 0:03:04]}  Qe7 {[%clk 0:02:41]} 10. Rc1 {[%clk 0:02:43]}  e4 {[%clk 0:02:36]} 11. Ng5 {[%clk 0:02:43]}  e3 {[%clk 0:02:37]} 12. f4 {[%clk 0:02:43]}  c6 {[%clk 0:02:35]} 13. h3 {[%clk 0:02:35]}  Nf8 {[%clk 0:02:27]} 14. Kh2 {[%clk 0:02:32]}  Bf5 {[%clk 0:02:20]} 15. a3 {[%clk 0:02:12]}  Rad8 {[%clk 0:02:11]} 16. d5 {[%clk 0:02:04]}  c5 {[%clk 0:02:06]} 17. b4 {[%clk 0:02:03]}  h6 {[%clk 0:01:59]} 18. Nf3 {[%clk 0:02:03]}  Ne4 {[%clk 0:01:57]} 19. Qb3 {[%clk 0:01:36]}  cxb4 {[%clk 0:01:29]} 20. axb4 {[%clk 0:01:31]}  Nf2 {[%clk 0:01:27]} 21. Nd1 {[%clk 0:01:24]}  Bxb2 {[%clk 0:01:21]} 22. Qxb2 {[%clk 0:01:22]}  Ne4 {[%clk 0:01:22]} 23. Nc3 {[%clk 0:01:16]}  Nd7 {[%clk 0:01:19]} 24. Nxe4 {[%clk 0:01:15]}  Bxe4 {[%clk 0:01:19]} 25. Qd4 {[%clk 0:01:15]}  Nb6 {[%clk 0:01:04]} 26. Qxe3 {[%clk 0:01:09]}  Qc7 {[%clk 0:00:57]} 27. Qd4 {[%clk 0:01:06]}  Bf5 {[%clk 0:00:57]} 28. Nh4 {[%clk 0:01:00]}  Rxe2 {[%clk 0:00:51]} 29. Nxf5 {[%clk 0:00:56]}  gxf5 {[%clk 0:00:52]} 30. Qf6 {[%clk 0:00:52]}  Rde8 {[%clk 0:00:47]} 31. Qxh6 {[%clk 0:00:42]}  Qe7 {[%clk 0:00:44]} 32. c5 {[%clk 0:00:24]}  dxc5 {[%clk 0:00:37]} 33. bxc5 {[%clk 0:00:24]}  Nxd5 {[%clk 0:00:36]} 34. Rce1 {[%clk 0:00:23]}  Re6 {[%clk 0:00:07]} 35. Rxe6 {[%clk 0:00:18]}  Qxe6 {[%clk 0:00:08]} 36. Qg5+ {[%clk 0:00:19]}  Kf8 {[%clk 0:00:07]} 37. Re1 {[%clk 0:00:11]}  Ne3 {[%clk 0:00:02]} 38. Rxe3 {[%clk 0:00:09]}  Qxe3 {[%clk 0:00:03]} 39. Qh6+ {[%clk 0:00:09]}  Kg8 {[%clk 0:00:04]} 40. Qg5+ {[%clk 0:00:10]}  Kh7 {[%clk 0:00:04]} 41. Qh5+ {[%clk 0:00:10]}  Kg7 {[%clk 0:00:05]} 42. Qg5+ {[%clk 0:00:11]}  Kh8 {[%clk 0:00:05]} 43. Qh6+ {[%clk 0:00:11]}  Kg8 {[%clk 0:00:06]} 44. Qg5+ {[%clk 0:00:12]}  Kf8 {[%clk 0:00:06]} 45. Qh6+ {[%clk 0:00:13]}  Kg8 {[%clk 0:00:06]} 1/2-1/2


[Site "https://www.chess.com"]

[Event "Titled Tuesday Blitz August 22 Early 2023"]
[White "Le, Tuan Minh"]
[Black "Materia, Marco"]
[WhiteFideId "12401153"]
[BlackFideId "45150451"]
[WhiteElo "2991"]
[BlackElo "2790"]
[Result "0-1"]
[Round "9"]
[TimeControl "180+1"]
[Date "2023.08.22"]
[WhiteClock "0:00:01"]
[BlackClock "0:00:49"]
[Board "28"]

1. d4 {[%clk 0:03:00]}  Nf6 {[%clk 0:03:00]} 2. Nf3 {[%clk 0:03:00]}  d5 {[%clk 0:03:00]} 3. Bf4 {[%clk 0:03:00]}  c5 {[%clk 0:03:00]} 4. c3 {[%clk 0:03:00]}  e6 {[%clk 0:02:53]} 5. e3 {[%clk 0:03:00]}  Bd6 {[%clk 0:02:52]} 6. Nbd2 {[%clk 0:02:59]}  O-O {[%clk 0:02:52]} 7. Bd3 {[%clk 0:02:57]}  Bxf4 {[%clk 0:02:49]} 8. exf4 {[%clk 0:02:57]}  Nc6 {[%clk 0:02:43]} 9. dxc5 {[%clk 0:02:58]}  a5 {[%clk 0:02:41]} 10. a4 {[%clk 0:02:46]}  b6 {[%clk 0:02:32]} 11. cxb6 {[%clk 0:02:44]}  Qxb6 {[%clk 0:02:33]} 12. Rb1 {[%clk 0:02:36]}  Ba6 {[%clk 0:02:32]} 13. Qe2 {[%clk 0:02:36]}  Bxd3 {[%clk 0:02:31]} 14. Qxd3 {[%clk 0:02:36]}  Rab8 {[%clk 0:02:27]} 15. O-O {[%clk 0:02:36]}  h6 {[%clk 0:02:25]} 16. Rfe1 {[%clk 0:02:34]}  Nd7 {[%clk 0:02:24]} 17. h3 {[%clk 0:02:24]}  Nc5 {[%clk 0:02:22]} 18. Qc2 {[%clk 0:02:24]}  Rfd8 {[%clk 0:02:18]} 19. f5 {[%clk 0:02:23]}  exf5 {[%clk 0:02:17]} 20. Qxf5 {[%clk 0:01:54]}  Nxa4 {[%clk 0:02:16]} 21. Nf1 {[%clk 0:01:52]}  d4 {[%clk 0:02:09]} 22. cxd4 {[%clk 0:01:46]}  Nxd4 {[%clk 0:02:08]} 23. Nxd4 {[%clk 0:01:46]}  Qxd4 {[%clk 0:02:07]} 24. Re4 {[%clk 0:01:46]}  Qc5 {[%clk 0:02:01]} 25. Re5 {[%clk 0:01:42]}  Qc8 {[%clk 0:01:56]} 26. Ng3 {[%clk 0:01:14]}  Rxb2 {[%clk 0:01:51]} 27. Ra1 {[%clk 0:01:08]}  Nc3 {[%clk 0:01:44]} 28. Qxc8 {[%clk 0:00:54]}  Rxc8 {[%clk 0:01:43]} 29. Raxa5 {[%clk 0:00:55]}  Nd1 {[%clk 0:01:38]} 30. Rf5 {[%clk 0:00:45]}  Rcc2 {[%clk 0:01:11]} 31. Ne4 {[%clk 0:00:26]}  Re2 {[%clk 0:01:06]} 32. Rae5 {[%clk 0:00:26]}  f6 {[%clk 0:01:00]} 33. Re8+ {[%clk 0:00:17]}  Kh7 {[%clk 0:01:00]} 34. h4 {[%clk 0:00:10]}  Nc3 {[%clk 0:00:57]} 35. Rf4 {[%clk 0:00:06]}  Rb1+ {[%clk 0:00:55]} 36. Kh2 {[%clk 0:00:06]}  Rbe1 {[%clk 0:00:53]} 37. f3 {[%clk 0:00:05]}  Nd5 {[%clk 0:00:51]} 38. Rf5 {[%clk 0:00:04]}  Ne3 {[%clk 0:00:51]} 39. Nxf6+ {[%clk 0:00:01]}  gxf6 {[%clk 0:00:51]} 40. Rxe3 {[%clk 0:00:02]}  Rxe3 {[%clk 0:00:51]} 41. Rxf6 {[%clk 0:00:02]}  R1e2 {[%clk 0:00:50]} 42. Kg3 {[%clk 0:00:02]}  Ra2 {[%clk 0:00:50]} 43. Rf7+ {[%clk 0:00:01]}  Kg6 {[%clk 0:00:50]} 44. Rb7 {[%clk 0:00:02]}  Ree2 {[%clk 0:00:50]} 45. Rb6+ {[%clk 0:00:02]}  Kf7 {[%clk 0:00:49]} 46. Rb7+ {[%clk 0:00:03]}  Ke8 {[%clk 0:00:48]} 47. Rb8+ {[%clk 0:00:01]}  Kd7 {[%clk 0:00:48]} 48. Rb7+ {[%clk 0:00:02]}  Kc6 {[%clk 0:00:48]} 49. Rh7 {[%clk 0:00:02]}  Rxg2+ {[%clk 0:00:48]} 50. Kf4 {[%clk 0:00:03]}  Ra4+ {[%clk 0:00:48]} 51. Kf5 {[%clk 0:00:03]}  Rxh4 {[%clk 0:00:49]} 52. f4 {[%clk 0:00:01]}  Rf2 {[%clk 0:00:49]} 0-1


[Site "https://www.chess.com"]

[Event "Titled Tuesday Blitz August 22 Early 2023"]
[White "Paravyan, David"]
[Black "Leiva, Gianmarco"]
[WhiteFideId "4194985"]
[BlackFideId "3804399"]
[WhiteElo "2960"]
[BlackElo "2745"]
[Result "1-0"]
[Round "9"]
[TimeControl "180+1"]
[Date "2023.08.22"]
[WhiteClock "0:01:48"]
[BlackClock "0:00:05"]
[Board "29"]

1. Nf3 {[%clk 0:03:00]}  Nf6 {[%clk 0:03:00]} 2. c4 {[%clk 0:03:00]}  e6 {[%clk 0:02:59]} 3. d4 {[%clk 0:03:00]}  d5 {[%clk 0:02:59]} 4. g3 {[%clk 0:03:00]}  Bb4+ {[%clk 0:02:59]} 5. Bd2 {[%clk 0:03:00]}  Be7 {[%clk 0:02:59]} 6. Bg2 {[%clk 0:03:01]}  O-O {[%clk 0:02:59]} 7. O-O {[%clk 0:03:01]}  Nbd7 {[%clk 0:02:58]} 8. Qc2 {[%clk 0:03:01]}  c6 {[%clk 0:02:55]} 9. Rd1 {[%clk 0:03:00]}  b6 {[%clk 0:02:55]} 10. Bf4 {[%clk 0:03:01]}  Bb7 {[%clk 0:02:16]} 11. Nc3 {[%clk 0:02:56]}  dxc4 {[%clk 0:02:15]} 12. Nd2 {[%clk 0:02:57]}  Nd5 {[%clk 0:02:09]} 13. Nxc4 {[%clk 0:02:57]}  Nxf4 {[%clk 0:02:05]} 14. gxf4 {[%clk 0:02:58]}  Nf6 {[%clk 0:01:55]} 15. a3 {[%clk 0:02:56]}  Rc8 {[%clk 0:01:51]} 16. b4 {[%clk 0:02:55]}  Nd5 {[%clk 0:01:51]} 17. e3 {[%clk 0:02:54]}  Qc7 {[%clk 0:01:38]} 18. Rac1 {[%clk 0:02:54]}  Rfd8 {[%clk 0:01:37]} 19. Ne5 {[%clk 0:02:50]}  Nxc3 {[%clk 0:01:25]} 20. Qxc3 {[%clk 0:02:50]}  c5 {[%clk 0:01:21]} 21. Bxb7 {[%clk 0:02:48]}  Qxb7 {[%clk 0:01:21]} 22. dxc5 {[%clk 0:02:48]}  Rxd1+ {[%clk 0:01:14]} 23. Rxd1 {[%clk 0:02:49]}  bxc5 {[%clk 0:01:15]} 24. Rd7 {[%clk 0:02:49]}  Rc7 {[%clk 0:01:15]} 25. Rxc7 {[%clk 0:02:35]}  Qxc7 {[%clk 0:01:15]} 26. Nd3 {[%clk 0:02:35]}  c4 {[%clk 0:01:04]} 27. Nb2 {[%clk 0:02:35]}  a5 {[%clk 0:00:42]} 28. bxa5 {[%clk 0:02:35]}  h5 {[%clk 0:00:28]} 29. Nxc4 {[%clk 0:02:34]}  Qb7 {[%clk 0:00:23]} 30. Nb6 {[%clk 0:02:28]}  Qf3 {[%clk 0:00:20]} 31. Qc8+ {[%clk 0:02:27]}  Bf8 {[%clk 0:00:19]} 32. Qd8 {[%clk 0:02:16]}  Kh7 {[%clk 0:00:15]} 33. a6 {[%clk 0:02:01]}  Be7 {[%clk 0:00:14]} 34. Qd3+ {[%clk 0:02:01]}  f5 {[%clk 0:00:05]} 35. a7 {[%clk 0:01:48]} 1-0


[Site "https://www.chess.com"]

[Event "Titled Tuesday Blitz August 22 Early 2023"]
[White "Kravtsiv, Martyn"]
[Black "Zhao, Jun"]
[WhiteFideId "14113147"]
[BlackFideId "8602522"]
[WhiteElo "2872"]
[BlackElo "2707"]
[Result "1-0"]
[Round "9"]
[TimeControl "180+1"]
[Date "2023.08.22"]
[WhiteClock "0:00:55"]
[BlackClock "0:01:02"]
[Board "31"]

1. e4 {[%clk 0:03:00]}  c5 {[%clk 0:02:55]} 2. Nf3 {[%clk 0:03:00]}  e6 {[%clk 0:02:56]} 3. d4 {[%clk 0:03:00]}  cxd4 {[%clk 0:02:56]} 4. Nxd4 {[%clk 0:03:00]}  Nf6 {[%clk 0:02:57]} 5. Nc3 {[%clk 0:03:00]}  Nc6 {[%clk 0:02:57]} 6. Be2 {[%clk 0:02:59]}  Bb4 {[%clk 0:02:56]} 7. Nb5 {[%clk 0:02:54]}  Nxe4 {[%clk 0:02:44]} 8. O-O {[%clk 0:02:53]}  Bxc3 {[%clk 0:02:38]} 9. bxc3 {[%clk 0:02:53]}  O-O {[%clk 0:02:36]} 10. Ba3 {[%clk 0:02:44]}  Re8 {[%clk 0:02:32]} 11. Bf3 {[%clk 0:02:38]}  d5 {[%clk 0:02:29]} 12. Bxe4 {[%clk 0:02:36]}  dxe4 {[%clk 0:02:29]} 13. Nd6 {[%clk 0:02:37]}  Re7 {[%clk 0:02:21]} 14. Nxe4 {[%clk 0:02:32]}  Qxd1 {[%clk 0:02:18]} 15. Raxd1 {[%clk 0:02:30]}  Rd7 {[%clk 0:02:19]} 16. Nc5 {[%clk 0:02:04]}  Rxd1 {[%clk 0:02:14]} 17. Rxd1 {[%clk 0:02:05]}  f6 {[%clk 0:02:12]} 18. Rd6 {[%clk 0:02:02]}  Kf7 {[%clk 0:02:11]} 19. f4 {[%clk 0:01:59]}  Na5 {[%clk 0:01:42]} 20. Rd8 {[%clk 0:01:17]}  b6 {[%clk 0:01:37]} 21. Ne4 {[%clk 0:01:08]}  Bb7 {[%clk 0:01:37]} 22. Nd6+ {[%clk 0:01:08]}  Kg6 {[%clk 0:01:28]} 23. Nxb7 {[%clk 0:01:09]}  Rxd8 {[%clk 0:01:28]} 24. Nxd8 {[%clk 0:01:10]}  Kf5 {[%clk 0:01:28]} 25. Kf2 {[%clk 0:01:09]}  e5 {[%clk 0:01:12]} 26. fxe5 {[%clk 0:01:08]}  fxe5 {[%clk 0:01:13]} 27. Nf7 {[%clk 0:01:02]}  h6 {[%clk 0:01:09]} 28. Nd6+ {[%clk 0:01:00]}  Ke6 {[%clk 0:01:09]} 29. Ke3 {[%clk 0:00:55]}  Kd5 {[%clk 0:01:02]} 30. c4+ {[%clk 0:00:55]} 1-0


[Site "https://www.chess.com"]

[Event "Titled Tuesday Blitz August 22 Early 2023"]
[White "Pert, Richard G"]
[Black "Zemlyanskii, Ivan"]
[WhiteFideId "404748"]
[BlackFideId "24249971"]
[WhiteElo "2689"]
[BlackElo "2847"]
[Result "0-1"]
[Round "9"]
[TimeControl "180+1"]
[Date "2023.08.22"]
[WhiteClock "0:00:00"]
[BlackClock "0:00:07"]
[Board "35"]

1. d4 {[%clk 0:03:00]}  d5 {[%clk 0:02:59]} 2. Nf3 {[%clk 0:03:00]}  Nf6 {[%clk 0:02:58]} 3. Bf4 {[%clk 0:03:00]}  c5 {[%clk 0:02:58]} 4. e3 {[%clk 0:03:00]}  Nc6 {[%clk 0:02:58]} 5. Nbd2 {[%clk 0:03:00]}  Qb6 {[%clk 0:02:55]} 6. dxc5 {[%clk 0:02:58]}  Qxb2 {[%clk 0:02:55]} 7. Rb1 {[%clk 0:02:56]}  Qc3 {[%clk 0:02:56]} 8. Bb5 {[%clk 0:02:55]}  e6 {[%clk 0:02:56]} 9. O-O {[%clk 0:02:54]}  Be7 {[%clk 0:02:57]} 10. e4 {[%clk 0:02:46]}  O-O {[%clk 0:02:53]} 11. e5 {[%clk 0:02:43]}  Nd7 {[%clk 0:02:53]} 12. Re1 {[%clk 0:02:36]}  Nxc5 {[%clk 0:02:36]} 13. Nb3 {[%clk 0:02:11]}  Ne4 {[%clk 0:01:55]} 14. Nbd2 {[%clk 0:02:07]}  Rd8 {[%clk 0:01:46]} 15. Qe2 {[%clk 0:01:48]}  Nxd2 {[%clk 0:01:31]} 16. Bxd2 {[%clk 0:01:47]}  Qxc2 {[%clk 0:01:23]} 17. Bd3 {[%clk 0:01:40]}  Qa4 {[%clk 0:01:22]} 18. Bg5 {[%clk 0:01:28]}  h6 {[%clk 0:01:13]} 19. Bb5 {[%clk 0:01:19]}  Qa5 {[%clk 0:00:52]} 20. Bxc6 {[%clk 0:01:00]}  hxg5 {[%clk 0:00:51]} 21. Bxb7 {[%clk 0:01:00]}  Rb8 {[%clk 0:00:51]} 22. Bxc8 {[%clk 0:00:57]}  Rdxc8 {[%clk 0:00:52]} 23. h3 {[%clk 0:00:54]}  Qa4 {[%clk 0:00:45]} 24. Qd2 {[%clk 0:00:48]}  g4 {[%clk 0:00:42]} 25. hxg4 {[%clk 0:00:44]}  Qxg4 {[%clk 0:00:43]} 26. Qa5 {[%clk 0:00:42]}  Rxb1 {[%clk 0:00:24]} 27. Rxb1 {[%clk 0:00:41]}  Bc5 {[%clk 0:00:23]} 28. Qa6 {[%clk 0:00:31]}  Rd8 {[%clk 0:00:16]} 29. Rb7 {[%clk 0:00:17]}  Bb6 {[%clk 0:00:16]} 30. Qb5 {[%clk 0:00:14]}  Qc4 {[%clk 0:00:15]} 31. Qb2 {[%clk 0:00:12]}  Qc6 {[%clk 0:00:13]} 32. Re7 {[%clk 0:00:10]}  Kf8 {[%clk 0:00:07]} 33. Qa3 {[%clk 0:00:02]}  Bc5 {[%clk 0:00:06]} 34. Rxf7+ {[%clk 0:00:03]}  Kxf7 {[%clk 0:00:06]} 35. Ng5+ {[%clk 0:00:03]}  Ke7 {[%clk 0:00:04]} 36. Qh3 {[%clk 0:00:03]}  Rf8 {[%clk 0:00:04]} 37. Qh4 {[%clk 0:00:03]}  Bxf2+ {[%clk 0:00:04]} 38. Qxf2 {[%clk 0:00:03]}  Rxf2 {[%clk 0:00:05]} 39. Kxf2 {[%clk 0:00:03]}  Qc2+ {[%clk 0:00:05]} 40. Kf3 {[%clk 0:00:03]}  Qf5+ {[%clk 0:00:06]} 41. Kg3 {[%clk 0:00:03]}  Qxg5+ {[%clk 0:00:07]} 42. Kh2 {[%clk 0:00:04]}  Qxe5+ {[%clk 0:00:07]} 43. Kg1 {[%clk 0:00:00]}  d4 {[%clk 0:00:07]} 0-1


[Site "https://www.chess.com"]